[Event "*** Titled Tuesday 3|2 Blitz"]
[Site "Chess.com"]
[Date "2016.08.02"]
[Round "4"]
[White "Zhani-Z"]
[Black "calemcc"]
[Result "1-0"]
[WhiteElo "2304"]
[BlackElo "2129"]
[TimeControl "180+2"]
[EndTime "11:45:26 PDT"]
[Termination "Zhani-Z won by resignation"]

1. e4 {[%clk 0:03:01.9]} 1... e6 {[%clk 0:03:01]} 2. Nf3 {[%clk 0:03:01.9]} 2...
d5 {[%clk 0:03:02.9]} 3. e5 {[%clk 0:03:03.2]} 3... c5 {[%clk 0:03:02.8]} 4. b4
{[%clk 0:03:04.8]} 4... c4 {[%clk 0:02:54.1]} 5. c3 {[%clk 0:03:05.1]} 5... Qc7
{[%clk 0:02:50.8]} 6. d4 {[%clk 0:03:03.1]} 6... cxd3 {[%clk 0:02:50.4]} 7. Bxd3
{[%clk 0:03:04.7]} 7... Nc6 {[%clk 0:02:48.7]} 8. Bf4 {[%clk 0:02:34.8]} 8...
Nge7 {[%clk 0:02:42.8]} 9. Bg3 {[%clk 0:02:22]} 9... Ng6 {[%clk 0:02:42.1]} 10.
Qe2 {[%clk 0:02:02.7]} 10... Be7 {[%clk 0:02:39.3]} 11. Nbd2 {[%clk 0:01:45.1]}
11... a6 {[%clk 0:02:33]} 12. h4 {[%clk 0:01:39.6]} 12... Nf8 {[%clk 0:02:30.8]}
13. Nb3 {[%clk 0:01:28.2]} 13... Nxb4 {[%clk 0:01:57.7]} 14. cxb4 {[%clk
0:01:26.7]} 14... Qc3+ {[%clk 0:01:57.7]} 15. Kf1 {[%clk 0:01:23.2]} 15... Qxa1+
{[%clk 0:01:57.5]} 16. Nxa1 {[%clk 0:01:23.8]} 1-0

[Event "*** Titled Tuesday 3|2 Blitz"]
[Site "Chess.com"]
[Date "2016.08.02"]
[Round "4"]
[White "josiwales"]
[Black "awb2001"]
[Result "1-0"]
[WhiteElo "2190"]
[BlackElo "2313"]
[TimeControl "180+2"]
[EndTime "11:46:14 PDT"]
[Termination "josiwales won by resignation"]

1. e4 {[%clk 0:03:01.9]} 1... c5 {[%clk 0:03:00.4]} 2. Nc3 {[%clk 0:03:02.4]}
2... Nc6 {[%clk 0:03:01.4]} 3. g3 {[%clk 0:03:03.7]} 3... g6 {[%clk 0:03:02.7]}
4. Bg2 {[%clk 0:03:05.3]} 4... Bg7 {[%clk 0:03:04.4]} 5. d3 {[%clk 0:03:06.8]}
5... d6 {[%clk 0:03:05.8]} 6. Be3 {[%clk 0:03:08.2]} 6... Bd7 {[%clk 0:03:06.3]}
7. Qd2 {[%clk 0:03:07.8]} 7... Nd4 {[%clk 0:03:06.9]} 8. Nd1 {[%clk 0:03:08.2]}
8... Qb6 {[%clk 0:03:06.1]} 9. c3 {[%clk 0:03:09.2]} 9... Nc6 {[%clk 0:03:07.3]}
10. Ne2 {[%clk 0:03:10.7]} 10... O-O-O {[%clk 0:03:08.2]} 11. d4 {[%clk
0:03:10.2]} 11... cxd4 {[%clk 0:03:07.4]} 12. cxd4 {[%clk 0:03:11]} 12... Qb4
{[%clk 0:03:04]} 13. Ndc3 {[%clk 0:03:09.3]} 13... Kb8 {[%clk 0:03:02.9]} 14. a3
{[%clk 0:03:08]} 14... Qa5 {[%clk 0:02:59.3]} 15. b4 {[%clk 0:03:08]} 15... Nxb4
{[%clk 0:02:56.3]} 16. O-O {[%clk 0:03:05]} 16... Na6 {[%clk 0:02:48.2]} 17.
Rfb1 {[%clk 0:03:01.5]} 17... Nf6 {[%clk 0:02:43.4]} 18. e5 {[%clk 0:03:02.2]}
18... b6 {[%clk 0:02:15.1]} 19. exf6 {[%clk 0:03:01.5]} 19... Bxf6 {[%clk
0:02:17]} 20. Qd3 {[%clk 0:02:53.1]} 20... Bf5 {[%clk 0:02:14.7]} 21. Be4 {[%clk
0:02:52.5]} 21... Bxe4 {[%clk 0:02:08]} 22. Qxe4 {[%clk 0:02:54.4]} 22... Nc7
{[%clk 0:02:05.1]} 23. Qd3 {[%clk 0:02:43.2]} 23... Rc8 {[%clk 0:02:04]} 24. Bd2
{[%clk 0:02:42.9]} 24... Qh5 {[%clk 0:02:02]} 25. Nf4 {[%clk 0:02:41.6]} 25...
Qg4 {[%clk 0:02:00.3]} 26. h3 {[%clk 0:02:41.6]} 26... Qd7 {[%clk 0:02:01.1]}
27. a4 {[%clk 0:02:41]} 27... h5 {[%clk 0:01:56.2]} 28. a5 {[%clk 0:02:41.3]}
28... Na8 {[%clk 0:01:52.4]} 29. axb6 {[%clk 0:02:41.9]} 29... axb6 {[%clk
0:01:53.2]} 30. Qa6 {[%clk 0:02:41.6]} 30... Kc7 {[%clk 0:01:50.3]} 31. Ncd5+
{[%clk 0:02:33.2]} 31... Kd8 {[%clk 0:01:51.1]} 32. Rc1 {[%clk 0:02:25.1]} 32...
Rb8 {[%clk 0:01:32.4]} 33. Qxa8 {[%clk 0:02:19.8]} 1-0

[Event "*** Titled Tuesday 3|2 Blitz"]
[Site "Chess.com"]
[Date "2016.08.02"]
[Round "4"]
[White "Caisachess"]
[Black "Sven_Tica"]
[Result "0-1"]
[WhiteElo "2185"]
[BlackElo "2420"]
[TimeControl "180+2"]
[EndTime "11:47:50 PDT"]
[Termination "Sven_Tica won by resignation"]

1. e4 {[%clk 0:03:01.9]} 1... c5 {[%clk 0:03:00.4]} 2. c3 {[%clk 0:03:02.6]}
2... g6 {[%clk 0:02:59.6]} 3. d4 {[%clk 0:03:02.8]} 3... cxd4 {[%clk 0:03:01.2]}
4. cxd4 {[%clk 0:03:04]} 4... d5 {[%clk 0:03:02.8]} 5. exd5 {[%clk 0:03:03.2]}
5... Bg7 {[%clk 0:03:03.3]} 6. Nc3 {[%clk 0:03:04.4]} 6... Nf6 {[%clk
0:03:04.4]} 7. Nf3 {[%clk 0:03:06]} 7... O-O {[%clk 0:03:05.3]} 8. Be2 {[%clk
0:03:03.4]} 8... Nbd7 {[%clk 0:03:04.3]} 9. Be3 {[%clk 0:03:04.8]} 9... Nb6
{[%clk 0:03:05.2]} 10. Ne5 {[%clk 0:03:05.5]} 10... Nbxd5 {[%clk 0:03:04.6]} 11.
O-O {[%clk 0:03:07]} 11... Be6 {[%clk 0:03:01.9]} 12. Qd2 {[%clk 0:03:06.6]}
12... Rc8 {[%clk 0:02:57.1]} 13. Rac1 {[%clk 0:03:05.7]} 13... Nxc3 {[%clk
0:02:46]} 14. bxc3 {[%clk 0:03:06]} 14... Qa5 {[%clk 0:02:46.1]} 15. Qb2 {[%clk
0:02:54.7]} 15... Nd5 {[%clk 0:02:28.7]} 16. Nc4 {[%clk 0:02:47.8]} 16... Qc7
{[%clk 0:02:12.9]} 17. Bd2 {[%clk 0:02:31]} 17... Nf4 {[%clk 0:02:08]} 18. Bxf4
{[%clk 0:02:28.4]} 18... Qxf4 {[%clk 0:02:09.9]} 19. Ne3 {[%clk 0:02:24.8]}
19... b6 {[%clk 0:02:10.3]} 20. Rfd1 {[%clk 0:02:22.4]} 20... Rfd8 {[%clk
0:02:10.6]} 21. Ba6 {[%clk 0:02:13.8]} 21... Rc7 {[%clk 0:02:01.1]} 22. a4
{[%clk 0:02:08.8]} 22... Bc8 {[%clk 0:01:54.6]} 23. Bc4 {[%clk 0:01:52.2]} 23...
Bb7 {[%clk 0:01:37.3]} 24. Qb3 {[%clk 0:01:53]} 24... e6 {[%clk 0:01:23.9]} 25.
Rc2 {[%clk 0:01:36.7]} 25... Rdc8 {[%clk 0:01:19]} 26. Rcd2 {[%clk 0:01:36.2]}
26... Rxc4 {[%clk 0:01:16.8]} 27. Nxc4 {[%clk 0:01:32.6]} 27... Bd5 {[%clk
0:01:18.3]} 28. Qb4 {[%clk 0:01:22.6]} 28... Rxc4 {[%clk 0:01:12.6]} 29. Qb2
{[%clk 0:01:17.4]} 29... Rxa4 {[%clk 0:01:09.7]} 30. Rc1 {[%clk 0:01:16.3]}
30... Ra2 {[%clk 0:01:08.7]} 0-1

[Event "*** Titled Tuesday 3|2 Blitz"]
[Site "Chess.com"]
[Date "2016.08.02"]
[Round "4"]
[White "diokletian"]
[Black "igorkovalenko"]
[Result "0-1"]
[WhiteElo "2448"]
[BlackElo "2556"]
[TimeControl "180+2"]
[EndTime "11:48:13 PDT"]
[Termination "igorkovalenko won by resignation"]

1. d4 {[%clk 0:02:55.7]} 1... d5 {[%clk 0:03:01.3]} 2. c4 {[%clk 0:02:54.6]}
2... e6 {[%clk 0:03:03.2]} 3. Nf3 {[%clk 0:02:55]} 3... Nf6 {[%clk 0:03:03.9]}
4. g3 {[%clk 0:02:55.6]} 4... dxc4 {[%clk 0:03:03.6]} 5. Bg2 {[%clk 0:02:56.4]}
5... Bb4+ {[%clk 0:03:04.2]} 6. Bd2 {[%clk 0:02:56.4]} 6... a5 {[%clk
0:03:06.1]} 7. O-O {[%clk 0:02:55.5]} 7... O-O {[%clk 0:03:06.2]} 8. Qc2 {[%clk
0:02:41]} 8... b6 {[%clk 0:03:02]} 9. Bg5 {[%clk 0:02:34]} 9... h6 {[%clk
0:02:39.7]} 10. Bxf6 {[%clk 0:02:34]} 10... Qxf6 {[%clk 0:02:41.6]} 11. a3
{[%clk 0:02:15.4]} 11... Bd6 {[%clk 0:02:41.2]} 12. Qxc4 {[%clk 0:02:00.4]}
12... Ba6 {[%clk 0:02:41.5]} 13. Qc2 {[%clk 0:02:00.8]} 13... Nd7 {[%clk
0:02:37.1]} 14. Nc3 {[%clk 0:02:00.4]} 14... Rac8 {[%clk 0:02:30.8]} 15. Rfd1
{[%clk 0:01:58.1]} 15... Qe7 {[%clk 0:02:21.9]} 16. Rac1 {[%clk 0:01:56.9]}
16... f5 {[%clk 0:02:16]} 17. e3 {[%clk 0:01:56.3]} 17... c5 {[%clk 0:02:15]}
18. Qb3 {[%clk 0:01:51.1]} 18... c4 {[%clk 0:02:13.3]} 19. Qa4 {[%clk
0:01:46.3]} 19... Nf6 {[%clk 0:02:11]} 20. Ne5 {[%clk 0:01:37.8]} 20... Qe8
{[%clk 0:02:12]} 21. Qxe8 {[%clk 0:01:30.9]} 21... Rfxe8 {[%clk 0:02:13.9]} 22.
a4 {[%clk 0:01:26.3]} 22... Re7 {[%clk 0:02:10.9]} 23. Nb5 {[%clk 0:01:26.9]}
23... Bxb5 {[%clk 0:02:09.1]} 24. axb5 {[%clk 0:01:27.5]} 24... Bxe5 {[%clk
0:02:08.6]} 25. dxe5 {[%clk 0:01:28]} 25... Ng4 {[%clk 0:02:10.1]} 26. Rd6
{[%clk 0:01:24.2]} 26... Nxe5 {[%clk 0:02:06.4]} 27. Rxb6 {[%clk 0:01:23.5]}
27... Rc5 {[%clk 0:02:06.6]} 28. Rc3 {[%clk 0:01:14.9]} 28... Rd7 {[%clk
0:02:07.1]} 29. Bf1 {[%clk 0:01:02.1]} 29... Rd1 {[%clk 0:02:04.4]} 30. Kg2
{[%clk 0:01:03.3]} 30... Kf7 {[%clk 0:01:50.9]} 31. b3 {[%clk 0:01:02.5]} 31...
cxb3 {[%clk 0:01:46.9]} 32. Rxb3 {[%clk 0:00:50.3]} 32... Rcc1 {[%clk
0:01:47.4]} 33. Be2 {[%clk 0:00:47]} 33... Rg1+ {[%clk 0:01:46.8]} 34. Kh3
{[%clk 0:00:48.1]} 34... Rc2 {[%clk 0:01:45.8]} 35. Bh5+ {[%clk 0:00:31.3]}
35... g6 {[%clk 0:01:45.5]} 0-1

[Event "*** Titled Tuesday 3|2 Blitz"]
[Site "Chess.com"]
[Date "2016.08.02"]
[Round "4"]
[White "Genghis_K"]
[Black "Chesstrainer1"]
[Result "1-0"]
[WhiteElo "2692"]
[BlackElo "2424"]
[TimeControl "180+2"]
[EndTime "11:48:16 PDT"]
[Termination "Genghis_K won by resignation"]

1. e4 {[%clk 0:03:01.9]} 1... c5 {[%clk 0:03:00.7]} 2. Nf3 {[%clk 0:03:03.1]}
2... e6 {[%clk 0:03:00.8]} 3. g3 {[%clk 0:03:02.7]} 3... d5 {[%clk 0:03:00.9]}
4. exd5 {[%clk 0:03:02.8]} 4... Qxd5 {[%clk 0:03:02.5]} 5. Nc3 {[%clk
0:03:00.3]} 5... Qd8 {[%clk 0:03:03]} 6. Bg2 {[%clk 0:03:01.3]} 6... Nc6 {[%clk
0:03:04.2]} 7. O-O {[%clk 0:03:02.1]} 7... Nge7 {[%clk 0:03:04.8]} 8. d4 {[%clk
0:02:50.9]} 8... Nxd4 {[%clk 0:03:04.9]} 9. Nxd4 {[%clk 0:02:50.3]} 9... cxd4
{[%clk 0:03:06.6]} 10. Nb5 {[%clk 0:02:51]} 10... Nc6 {[%clk 0:03:07.2]} 11. Bf4
{[%clk 0:02:38.6]} 11... e5 {[%clk 0:03:08.2]} 12. Re1 {[%clk 0:02:29.8]} 12...
Be7 {[%clk 0:03:01]} 13. Bxe5 {[%clk 0:02:19.5]} 13... Nxe5 {[%clk 0:03:00.5]}
14. Rxe5 {[%clk 0:02:21.4]} 14... O-O {[%clk 0:03:02.1]} 15. Qxd4 {[%clk
0:02:22.5]} 15... Bf6 {[%clk 0:02:56.4]} 16. Qxd8 {[%clk 0:02:15.1]} 16... Rxd8
{[%clk 0:02:57.5]} 17. Rd5 {[%clk 0:02:14.3]} 17... Rxd5 {[%clk 0:02:42.5]} 18.
Bxd5 {[%clk 0:02:16.2]} 18... Bd7 {[%clk 0:01:55.9]} 19. Nd6 {[%clk 0:02:09.7]}
19... Bc6 {[%clk 0:01:50.2]} 20. Bxc6 {[%clk 0:01:56.6]} 20... bxc6 {[%clk
0:01:51]} 21. c3 {[%clk 0:01:57.8]} 21... Rd8 {[%clk 0:01:33.7]} 22. Nc4 {[%clk
0:01:56.5]} 22... h5 {[%clk 0:01:27]} 23. Kf1 {[%clk 0:01:51.9]} 23... h4 {[%clk
0:01:24.7]} 24. Ke2 {[%clk 0:01:48]} 24... Re8+ {[%clk 0:01:25.4]} 25. Ne3
{[%clk 0:01:43]} 25... Rb8 {[%clk 0:01:26.1]} 26. b3 {[%clk 0:01:30.8]} 26...
Bxc3 {[%clk 0:01:24.6]} 27. Rc1 {[%clk 0:01:30.6]} 27... hxg3 {[%clk 0:01:11.6]}
28. Rxc3 {[%clk 0:01:24.6]} 28... gxh2 {[%clk 0:01:11]} 29. Rc1 {[%clk
0:01:24.2]} 29... Rb5 {[%clk 0:01:10.8]} 30. Rh1 {[%clk 0:01:23]} 30... Ra5
{[%clk 0:01:10.3]} 31. a4 {[%clk 0:01:21.2]} 31... Rh5 {[%clk 0:01:11.3]} 32.
Ng4 {[%clk 0:01:20.9]} 32... f5 {[%clk 0:01:02.2]} 33. Rxh2 {[%clk 0:01:19.2]}
33... Rg5 {[%clk 0:01:02.8]} 34. Ne5 {[%clk 0:01:18.7]} 34... c5 {[%clk
0:01:02.2]} 35. Rh8+ {[%clk 0:01:16.6]} 1-0

[Event "*** Titled Tuesday 3|2 Blitz"]
[Site "Chess.com"]
[Date "2016.08.02"]
[Round "4"]
[White "StellarChessPro"]
[Black "jup1978"]
[Result "1-0"]
[WhiteElo "2354"]
[BlackElo "2166"]
[TimeControl "180+2"]
[EndTime "11:48:20 PDT"]
[Termination "StellarChessPro won by resignation"]

1. d4 {[%clk 0:03:01.9]} 1... d5 {[%clk 0:03:00.1]} 2. Bf4 {[%clk 0:03:01.5]}
2... c5 {[%clk 0:03:00.1]} 3. c3 {[%clk 0:03:01.2]} 3... Nf6 {[%clk 0:03:00.8]}
4. Nf3 {[%clk 0:03:02]} 4... e6 {[%clk 0:03:01.9]} 5. e3 {[%clk 0:03:03.5]} 5...
Bd6 {[%clk 0:03:02.7]} 6. Bg3 {[%clk 0:03:03.7]} 6... b6 {[%clk 0:03:01.1]} 7.
Bb5+ {[%clk 0:03:03.2]} 7... Bd7 {[%clk 0:02:57.2]} 8. Qa4 {[%clk 0:02:56.4]}
8... Bxg3 {[%clk 0:02:56.7]} 9. hxg3 {[%clk 0:02:55.7]} 9... Bxb5 {[%clk
0:02:57.5]} 10. Qxb5+ {[%clk 0:02:56.6]} 10... Qd7 {[%clk 0:02:59.4]} 11. Qd3
{[%clk 0:02:55.1]} 11... Nc6 {[%clk 0:02:57.2]} 12. Nbd2 {[%clk 0:02:56.3]}
12... h6 {[%clk 0:02:53.5]} 13. Ne5 {[%clk 0:02:57.2]} 13... Qd6 {[%clk
0:02:39]} 14. f4 {[%clk 0:02:44.6]} 14... Nd7 {[%clk 0:02:33.4]} 15. O-O-O
{[%clk 0:02:41.5]} 15... cxd4 {[%clk 0:02:29]} 16. exd4 {[%clk 0:02:39.7]} 16...
O-O-O {[%clk 0:02:29.1]} 17. Nxf7 {[%clk 0:02:36.6]} 17... Qe7 {[%clk
0:02:29.8]} 18. Nxh8 {[%clk 0:02:35.6]} 18... Rxh8 {[%clk 0:02:31.7]} 19. Rde1
{[%clk 0:02:37.3]} 19... Nd8 {[%clk 0:02:29.7]} 20. Kb1 {[%clk 0:02:33]} 20...
Rf8 {[%clk 0:02:29.2]} 21. Nf3 {[%clk 0:02:31.6]} 21... Nf6 {[%clk 0:02:28.4]}
22. Ne5 {[%clk 0:02:31.5]} 22... Qd6 {[%clk 0:02:27.6]} 23. Re2 {[%clk
0:02:31.3]} 23... Ne4 {[%clk 0:02:28.4]} 24. Rhe1 {[%clk 0:02:32]} 24... Nf7
{[%clk 0:02:28.8]} 25. c4 {[%clk 0:02:30.6]} 25... Nxe5 {[%clk 0:02:27]} 26.
fxe5 {[%clk 0:02:28.6]} 26... Qb4 {[%clk 0:02:24.5]} 27. cxd5 {[%clk 0:02:28.1]}
27... exd5 {[%clk 0:02:26.4]} 28. Rc1+ {[%clk 0:02:28.9]} 28... Kb8 {[%clk
0:02:25.5]} 29. a3 {[%clk 0:02:28.6]} 29... Qa4 {[%clk 0:02:21.5]} 30. Rec2
{[%clk 0:02:27.2]} 30... Rf7 {[%clk 0:02:17.5]} 31. Qe3 {[%clk 0:02:20.4]} 31...
Kb7 {[%clk 0:02:13.2]} 32. e6 {[%clk 0:02:09.6]} 32... Re7 {[%clk 0:02:12.9]}
33. Qf4 {[%clk 0:02:10.9]} 33... Ka6 {[%clk 0:01:57.3]} 34. Qb8 {[%clk 0:02:07]}
34... Qb5 {[%clk 0:01:51]} 35. Qc8+ {[%clk 0:02:03.5]} 35... Ka5 {[%clk
0:01:51.1]} 36. Ka2 {[%clk 0:01:44.6]} 36... a6 {[%clk 0:01:42.4]} 37. Rc7
{[%clk 0:01:14.3]} 37... Ka4 {[%clk 0:01:24.7]} 38. Rxe7 {[%clk 0:00:51.5]} 1-0

[Event "*** Titled Tuesday 3|2 Blitz"]
[Site "Chess.com"]
[Date "2016.08.02"]
[Round "4"]
[White "Ginger_GM"]
[Black "Maitreia"]
[Result "1-0"]
[WhiteElo "2408"]
[BlackElo "2363"]
[TimeControl "180+2"]
[EndTime "11:49:02 PDT"]
[Termination "Ginger_GM won by resignation"]

1. d4 {[%clk 0:03:01.9]} 1... Nf6 {[%clk 0:03:00.2]} 2. c4 {[%clk 0:03:02.3]}
2... g6 {[%clk 0:03:01.8]} 3. Nc3 {[%clk 0:03:02.9]} 3... Bg7 {[%clk 0:03:03.4]}
4. e4 {[%clk 0:03:03.4]} 4... O-O {[%clk 0:03:05.3]} 5. Be2 {[%clk 0:03:04.3]}
5... d6 {[%clk 0:03:06.1]} 6. Be3 {[%clk 0:03:04.9]} 6... Nc6 {[%clk 0:02:52.9]}
7. d5 {[%clk 0:03:01.4]} 7... Ne5 {[%clk 0:02:52.1]} 8. h3 {[%clk 0:03:01.5]}
8... c6 {[%clk 0:02:51.4]} 9. f4 {[%clk 0:03:01.6]} 9... Ned7 {[%clk 0:02:52.5]}
10. Nf3 {[%clk 0:02:58.5]} 10... Nh5 {[%clk 0:02:42.9]} 11. O-O {[%clk
0:02:54.3]} 11... Ng3 {[%clk 0:02:42.2]} 12. Re1 {[%clk 0:02:54.2]} 12... Bxc3
{[%clk 0:02:32.7]} 13. bxc3 {[%clk 0:02:54]} 13... Nxe4 {[%clk 0:02:34.3]} 14.
Bd3 {[%clk 0:02:44.7]} 14... Nef6 {[%clk 0:02:21.1]} 15. f5 {[%clk 0:02:39.1]}
15... cxd5 {[%clk 0:02:16.9]} 16. cxd5 {[%clk 0:02:31.8]} 16... Ne5 {[%clk
0:02:05.6]} 17. fxg6 {[%clk 0:02:23.3]} 17... Nxf3+ {[%clk 0:02:02.7]} 18. Qxf3
{[%clk 0:02:23.8]} 18... hxg6 {[%clk 0:02:03.8]} 19. Bd4 {[%clk 0:02:15.6]}
19... Re8 {[%clk 0:01:29.9]} 20. c4 {[%clk 0:02:03.6]} 20... Bd7 {[%clk
0:01:18.2]} 21. Qf4 {[%clk 0:01:46.7]} 21... Kg7 {[%clk 0:00:51.7]} 22. g4
{[%clk 0:01:32]} 22... Rh8 {[%clk 0:00:52.1]} 23. g5 {[%clk 0:01:24.8]} 23...
Rxh3 {[%clk 0:00:49.2]} 24. gxf6+ {[%clk 0:01:23.8]} 24... exf6 {[%clk
0:00:51.1]} 25. Re3 {[%clk 0:01:17.6]} 25... Rxe3 {[%clk 0:00:26.5]} 26. Qxe3
{[%clk 0:01:16.4]} 26... Kg8 {[%clk 0:00:19.5]} 27. Rf1 {[%clk 0:01:13]} 27...
Qe8 {[%clk 0:00:16]} 28. Qh6 {[%clk 0:01:04.8]} 28... Qf8 {[%clk 0:00:11.3]} 29.
Qh4 {[%clk 0:01:05.1]} 29... Qg7 {[%clk 0:00:05.5]} 30. Bxf6 {[%clk 0:01:05.2]}
30... Qh7 {[%clk 0:00:06.8]} 31. Qxh7+ {[%clk 0:01:05.5]} 31... Kxh7 {[%clk
0:00:08.7]} 32. Kg2 {[%clk 0:01:05.9]} 32... Bg4 {[%clk 0:00:03.5]} 33. Rh1+
{[%clk 0:01:06.1]} 33... Bh5 {[%clk 0:00:04.9]} 34. Rxh5+ {[%clk 0:01:07.1]} 1-0

[Event "*** Titled Tuesday 3|2 Blitz"]
[Site "Chess.com"]
[Date "2016.08.02"]
[Round "4"]
[White "Wolverine_master"]
[Black "AnastasiaProtopopova"]
[Result "0-1"]
[WhiteElo "2001"]
[BlackElo "1988"]
[TimeControl "180+2"]
[EndTime "11:49:08 PDT"]
[Termination "AnastasiaProtopopova won by resignation"]

1. e4 {[%clk 0:03:01.9]} 1... e5 {[%clk 0:02:57]} 2. Nf3 {[%clk 0:03:02.7]} 2...
Nc6 {[%clk 0:02:57.9]} 3. d4 {[%clk 0:03:03.7]} 3... exd4 {[%clk 0:02:57.2]} 4.
Bc4 {[%clk 0:03:02.7]} 4... Nf6 {[%clk 0:02:54.1]} 5. e5 {[%clk 0:03:02.3]} 5...
d5 {[%clk 0:02:54.5]} 6. Bb5 {[%clk 0:03:03.1]} 6... Ne4 {[%clk 0:02:51.6]} 7.
Nxd4 {[%clk 0:03:04.2]} 7... Bd7 {[%clk 0:02:53.2]} 8. Bxc6 {[%clk 0:03:03.4]}
8... bxc6 {[%clk 0:02:52.5]} 9. O-O {[%clk 0:03:03.3]} 9... Bc5 {[%clk
0:02:51.5]} 10. Be3 {[%clk 0:03:04]} 10... Qb8 {[%clk 0:02:41.7]} 11. Nd2 {[%clk
0:02:03.6]} 11... Nxd2 {[%clk 0:02:36.1]} 12. Qxd2 {[%clk 0:02:04.1]} 12... O-O
{[%clk 0:02:33.7]} 13. f4 {[%clk 0:02:03.1]} 13... Qxb2 {[%clk 0:02:29.7]} 14.
f5 {[%clk 0:01:58.9]} 14... Rae8 {[%clk 0:02:23.3]} 15. Rab1 {[%clk 0:01:28.1]}
15... Qxa2 {[%clk 0:02:16.9]} 16. f6 {[%clk 0:00:39.4]} 16... Rxe5 {[%clk
0:02:03]} 17. Bh6 {[%clk 0:00:31]} 17... Re4 {[%clk 0:01:08.6]} 18. Qg5 {[%clk
0:00:05.1]} 18... Bxd4+ {[%clk 0:01:06]} 19. Kh1 {[%clk 0:00:06.3]} 19... Rg4
{[%clk 0:01:05.4]} 20. Qh5 {[%clk 0:00:05.4]} 20... Qxc2 {[%clk 0:00:54.3]} 21.
Rg1 {[%clk 0:00:02.5]} 21... Bxg1 {[%clk 0:00:50.1]} 22. Rxg1 {[%clk 0:00:04.4]}
22... gxh6 {[%clk 0:00:50.5]} 23. Qxh6 {[%clk 0:00:05.6]} 23... Qg6 {[%clk
0:00:49.8]} 24. Qe3 {[%clk 0:00:06.3]} 24... Re8 {[%clk 0:00:49.5]} 25. Qxa7
{[%clk 0:00:07.1]} 25... d4 {[%clk 0:00:46]} 26. Qxc7 {[%clk 0:00:07.9]} 26...
Rxg2 {[%clk 0:00:35.1]} 27. Rxg2 {[%clk 0:00:07]} 27... Re1+ {[%clk 0:00:35.7]}
0-1

[Event "*** Titled Tuesday 3|2 Blitz"]
[Site "Chess.com"]
[Date "2016.08.02"]
[Round "4"]
[White "ecwinslow"]
[Black "Oleksandr_Bortnyk"]
[Result "0-1"]
[WhiteElo "1999"]
[BlackElo "2527"]
[TimeControl "180+2"]
[EndTime "11:49:08 PDT"]
[Termination "Oleksandr_Bortnyk won by resignation"]

1. d4 {[%clk 0:03:00.1]} 1... a6 {[%clk 0:02:58.5]} 2. e4 {[%clk 0:02:59.4]}
2... b5 {[%clk 0:02:58.5]} 3. Bd3 {[%clk 0:02:59.8]} 3... Bb7 {[%clk 0:02:59.5]}
4. Nf3 {[%clk 0:02:57.2]} 4... e6 {[%clk 0:03:00.6]} 5. Nbd2 {[%clk 0:02:52.7]}
5... c5 {[%clk 0:03:01.1]} 6. c3 {[%clk 0:02:52.9]} 6... Nf6 {[%clk 0:02:58.2]}
7. a3 {[%clk 0:02:51.8]} 7... Nc6 {[%clk 0:02:48.5]} 8. Qe2 {[%clk 0:02:43.3]}
8... Qb6 {[%clk 0:02:48.5]} 9. dxc5 {[%clk 0:02:40.7]} 9... Bxc5 {[%clk
0:02:50.4]} 10. b4 {[%clk 0:02:40.1]} 10... Be7 {[%clk 0:02:48.9]} 11. Bb2
{[%clk 0:02:36.3]} 11... d5 {[%clk 0:02:44.1]} 12. O-O {[%clk 0:02:27.9]} 12...
Rd8 {[%clk 0:02:37.6]} 13. Rad1 {[%clk 0:02:15.7]} 13... Nh5 {[%clk 0:02:35.9]}
14. g3 {[%clk 0:02:14.6]} 14... Nf6 {[%clk 0:02:33.1]} 15. exd5 {[%clk
0:02:03.9]} 15... Rxd5 {[%clk 0:02:32.7]} 16. c4 {[%clk 0:01:58.7]} 16... Rh5
{[%clk 0:02:29.5]} 17. c5 {[%clk 0:01:50.2]} 17... Qc7 {[%clk 0:02:29.9]} 18.
Ne4 {[%clk 0:01:47.7]} 18... O-O {[%clk 0:02:23.6]} 19. Nxf6+ {[%clk 0:01:45.5]}
19... gxf6 {[%clk 0:02:25.5]} 20. Nd4 {[%clk 0:01:28.6]} 20... Re5 {[%clk
0:02:19.1]} 21. Qg4+ {[%clk 0:01:28]} 21... Rg5 {[%clk 0:02:20]} 22. Qh4 {[%clk
0:01:11.4]} 22... f5 {[%clk 0:02:21]} 23. Rfe1 {[%clk 0:00:54.3]} 23... Rg4
{[%clk 0:02:17]} 24. Nxf5 {[%clk 0:00:30.7]} 24... exf5 {[%clk 0:02:15.2]} 25.
Qh5 {[%clk 0:00:27.4]} 25... Nd4 {[%clk 0:02:13.3]} 26. Bxf5 {[%clk 0:00:24.3]}
26... Nf3+ {[%clk 0:01:42.2]} 27. Kf1 {[%clk 0:00:24]} 27... Rg6 {[%clk
0:01:44.1]} 28. Re4 {[%clk 0:00:12.7]} 28... Ng5 {[%clk 0:01:26.2]} 29. Rg4
{[%clk 0:00:11.4]} 29... Qc6 {[%clk 0:01:17.8]} 30. Bxg6 {[%clk 0:00:08.4]}
30... fxg6 {[%clk 0:01:15]} 31. Rxg5 {[%clk 0:00:05.9]} 31... Qg2+ {[%clk
0:01:13.4]} 32. Ke2 {[%clk 0:00:05.1]} 32... Qxf2+ {[%clk 0:01:10.2]} 33. Kd3
{[%clk 0:00:05.4]} 33... Rf3+ {[%clk 0:01:05.5]} 0-1